[Event "Croatian-ch Youth U13 2022"]
[Site "Trogir"]
[Date "2022.06.24"]
[Round "5.1"]
[White "Petrus, Adrian"]
[Black "Poljan, Max"]
[Result "1/2-1/2"]
[ECO "B22"]
[WhiteElo "1526"]
[BlackElo "1618"]
[Annotator "NA RC"]
[PlyCount "123"]
[EventDate "2022.06.22"]
[EventType "swiss"]
[EventCountry "CRO"]
[SourceTitle "playchess.com"]
[Source "ChessBase"]
[SourceQuality "1"]
[TimeControl "5400+30"]

1. e4 {[%emt 0:00:10]} c5 {[%emt 0:00:07]} 2. Nf3 {[%emt 0:00:08]} e6 {[%emt 0:00:07]} 3. c3 {[%emt 0:00:11]} Nf6 {[%emt 0:00:07]} 4. e5 {[%emt 0:00:05]} Nd5 {[%emt 0:00:05]} 5. d4 {[%emt 0:00:09]} cxd4 {[%emt 0:00:05]} 6. cxd4 {[%emt 0:00:02]} d6 {[%emt 0:00:11]} 7. Bc4 {[%emt 0:00:31]} Nb6 {[%emt 0:01:43]} 8. Bb5+ {[%emt 0:03:40]} Bd7 {[%emt 0:00:13]} 9. Bxd7+ {[%emt 0:00:09]} N8xd7 {[%emt 0:00:51]} 10. O-O {[%emt 0:00:16]} Qc7 {[%emt 0:02:40]} 11. Qe2 {[%emt 0:02:17]} dxe5 {[%emt 0:02:31]} 12. dxe5 {[%emt 0:00:11]} Qc4 {[%emt 0:02:25]} 13. Re1 {[%emt 0:07:13]} Rc8 {[%emt 0:01:03]} 14. Nbd2 {[%emt 0:04:35]} Qxe2 {[%emt 0:03:45]} 15. Rxe2 {[%emt 0:00:12]} Nc5 {[%emt 0:01:48]} 16. a3 {[%emt 0:03:45]} g6 {[%emt 0:06:31]} 17. Rb1 {[%emt 0:04:25]} Bg7 {[%emt 0:11:46]} 18. Ne4 {[%emt 0:04:07]} Nxe4 {[%emt 0:01:12]} 19. Rxe4 {[%emt 0:00:38]} Rc4 {[%emt 0:00:26]} 20. Re1 {[%emt 0:03:48]} O-O {[%emt 0:10:23]} 21. b3 {[%emt 0:02:39]} Rc5 {[%emt 0:05:26]} 22. Be3 {[%emt 0:02:01]} Rd5 {[%emt 0:01:35]} 23. Bxb6 {[%emt 0:02:09]} axb6 {[%emt 0:00:06]} 24. Kf1 {[%emt 0:02:54]} Bh6 {[%emt 0:01:43]} 25. Red1 {[%emt 0:01:20]} Rfd8 {[%emt 0:00:13]} 26. Rxd5 {[%emt 0:01:52]} Rxd5 {[%emt 0:00:02]} 27. b4 {[%emt 0:03:39]} Bf4 {[%emt 0:02:45]} 28. Re1 {[%emt 0:01:58]} g5 {[%emt 0:11:22]} 29. h3 {[%emt 0:07:53]} h5 {[%emt 0:03:49]} 30. g3 {[%emt 0:00:53]} g4 {[%emt 0:00:11]} 31. hxg4 {[%emt 0:00:11]} hxg4 {[%emt 0:00:06]} 32. Nh2 {[%emt 0:00:06]} Bxe5 {[%emt 0:01:36]} 33. Nxg4 {[%emt 0:00:23]} Bb2 {[%emt 0:05:00]} 34. Rb1 {[%emt 0:04:15]} Bd4 {[%emt 0:05:05]} 35. Rb3 {[%emt 0:03:06]} b5 {[%emt 0:02:52]} 36. Ke2 {[%emt 0:02:20]} Kf8 {[%emt 0:00:13]} 37. Ne3 {[%emt 0:00:28]} Rd7 {[%emt 0:00:39]} 38. Rd3 {[%emt 0:01:31]} Ke7 {[%emt 0:01:08]} 39. Nc2 {[%emt 0:01:01]} Bb2 {[%emt 0:00:58]} 40. Rxd7+ {[%emt 0:05:00]} Kxd7 {[%emt 0:00:07]} 41. Kd3 {[%emt 0:00:07]} Ke7 {[%emt 0:03:17]} 42. g4 {[%emt 0:03:57]} Kf6 {[%emt 0:01:34]} 43. Ke3 {[%emt 0:10:13]} Kg5 {[%emt 0:02:22]} 44. f3 {[%emt 0:01:43]} f5 {[%emt 0:00:48]} 45. gxf5 {[%emt 0:00:40]} exf5 {[%emt 0:00:07]} 46. Ne1 {[%emt 0:01:28]} b6 {[%emt 0:05:32]} 47. Nd3 {[%emt 0:01:26]} Bc3 {[%emt 0:00:07]} 48. Nc1 {[%emt 0:00:59]} Kf6 {[%emt 0:03:50]} 49. f4 {[%emt 0:09:36]} Kg6 {[%emt 0:02:12]} 50. Nd3 {[%emt 0:00:49]} Kh5 {[%emt 0:01:18]} 51. Nc1 {[%emt 0:01:28]} Kg4 {[%emt 0:00:42]} 52. Nd3 {[%emt 0:00:53]} Bf6 {[%emt 0:00:32]} 53. Nc1 {[%emt 0:00:15]} Be7 {[%emt 0:00:51]} 54. Nd3 {[%emt 0:00:42]} Bd6 {[%emt 0:00:28]} 55. Nf2+ {[%emt 0:00:06]} Kg3 {[%emt 0:00:24]} 56. Nd3 {[%emt 0:00:06]} Bc7 {[%emt 0:00:22]} 57. Ne5 {[%emt 0:00:27]} Bxe5 {[%emt 0:00:18]} 58. fxe5 {[%emt 0:00:01]} f4+ {[%emt 0:00:07]} 59. Kd2 {[%emt 0:01:09]} f3 {[%emt 0:00:20]} 60. e6 {[%emt 0:00:05]} f2 {[%emt 0:00:07]} 61. e7 {[%emt 0:00:08]} f1=Q {[%emt 0:00:08]} 62. e8=Q {[%emt 0:00:06]} 1/2-1/2

[Event "Croatian-ch Youth U13 2022"]
[Site "Trogir"]
[Date "2022.06.24"]
[Round "5.2"]
[White "Pehar, Borna"]
[Black "Kresic, Vid"]
[Result "1-0"]
[ECO "C56"]
[WhiteElo "1756"]
[BlackElo "1459"]
[Annotator "NA RC"]
[PlyCount "53"]
[EventDate "2022.06.22"]
[EventType "swiss"]
[EventCountry "CRO"]
[SourceTitle "playchess.com"]
[Source "ChessBase"]
[SourceQuality "1"]
[TimeControl "5400+30"]

1. e4 {[%emt 0:00:08]} e5 {[%emt 0:00:30]} 2. Nf3 {[%emt 0:00:11]} Nc6 {[%emt 0:00:18]} 3. Bc4 {[%emt 0:00:08]} Bc5 {[%emt 0:00:10]} 4. O-O {[%emt 0:00:27]} Nf6 {[%emt 0:01:12]} 5. d4 {[%emt 0:00:28]} exd4 {[%emt 0:00:26]} 6. e5 {[%emt 0:00:20]} d5 {[%emt 0:01:10]} 7. exf6 {[%emt 0:00:14]} dxc4 {[%emt 0:00:21]} 8. fxg7 {[%emt 0:00:26]} Rg8 {[%emt 0:00:02]} 9. Re1+ {[%emt 0:00:22]} Be6 {[%emt 0:00:33]} 10. Bg5 {[%emt 0:00:18]} Be7 {[%emt 0:06:26]} 11. Bxe7 {[%emt 0:03:24]} Kxe7 {[%emt 0:02:15]} 12. Na3 {[%emt 0:07:17]} Qd5 {[%emt 0:04:27]} 13. Qe2 {[%emt 0:02:00]} Kd7 {[%emt 0:06:14]} 14. Nd2 {[%emt 0:17:05]} Rxg7 {[%emt 0:00:18]} 15. g3 {[%emt 0:02:19]} b5 {[%emt 0:08:09]} 16. Ne4 {[%emt 0:00:58]} Qf5 {[%emt 0:13:30]} 17. b3 {[%emt 0:01:36]} cxb3 {[%emt 0:16:04]} 18. cxb3 {[%emt 0:01:43]} a6 {[%emt 0:00:32]} 19. Rac1 {[%emt 0:01:08]} Bd5 {[%emt 0:08:54]} 20. Nc5+ {[%emt 0:03:50]} Kd6 {[%emt 0:01:00]} 21. Qxb5 {[%emt 0:11:39]} Ne5 {[%emt 0:04:56]} 22. Nb7+ {[%emt 0:01:04]} Ke6 {[%emt 0:05:34]} 23. Rc6+ {[%emt 0:01:40]} Bxc6 {[%emt 0:01:00]} 24. Qxc6+ {[%emt 0:00:17]} Ke7 {[%emt 0:00:18]} 25. Nc4 {[%emt 0:11:54]} f6 {[%emt 0:02:37]} 26. f4 {[%emt 0:02:42]} Qxf4 {[%emt 0:07:10]} 27. Nxe5 {[%emt 0:12:24]} 1-0

[Event "Croatian-ch Youth U13 2022"]
[Site "Trogir"]
[Date "2022.06.24"]
[Round "5.4"]
[White "Tadic, Jure"]
[Black "Horvat, Ivan"]
[Result "1-0"]
[ECO "B80"]
[WhiteElo "1565"]
[BlackElo "1290"]
[Annotator "NA RC"]
[PlyCount "47"]
[EventDate "2022.06.22"]
[EventType "swiss"]
[EventCountry "CRO"]
[SourceTitle "playchess.com"]
[Source "ChessBase"]
[SourceQuality "1"]
[TimeControl "5400+30"]

1. e4 {[%emt 0:00:03]} c5 {[%emt 0:00:07]} 2. Nf3 {[%emt 0:00:19]} d6 {[%emt 0:00:13]} 3. d4 {[%emt 0:00:14]} cxd4 {[%emt 0:00:10]} 4. Nxd4 {[%emt 0:00:06]} Nf6 {[%emt 0:00:14]} 5. Nc3 {[%emt 0:00:21]} a6 {[%emt 0:00:26]} 6. f3 {[%emt 0:00:34]} e6 {[%emt 0:00:21]} 7. Be3 {[%emt 0:00:17]} Be7 {[%emt 0:00:17]} 8. Qd2 {[%emt 0:00:34]} b5 {[%emt 0:00:47]} 9. g4 {[%emt 0:00:45]} Bb7 {[%emt 0:00:32]} 10. g5 {[%emt 0:00:55]} Nh5 {[%emt 0:00:16]} 11. O-O-O {[%emt 0:01:13]} Nd7 {[%emt 0:00:59]} 12. a3 {[%emt 0:01:38]} O-O {[%emt 0:02:35]} 13. f4 {[%emt 0:03:03]} g6 {[%emt 0:01:19]} 14. Be2 {[%emt 0:00:35]} Ng7 {[%emt 0:00:59]} 15. h4 {[%emt 0:01:25]} Nc5 {[%emt 0:31:13]} 16. Bf3 {[%emt 0:15:10]} Qa5 {[%emt 0:14:10]} 17. Kb1 {[%emt 0:14:29]} Qc7 {[%emt 0:06:03]} 18. Qg2 {[%emt 0:05:26]} Rac8 {[%emt 0:10:01]} 19. h5 {[%emt 0:02:32]} Nxh5 {[%emt 0:04:54]} 20. Bxh5 {[%emt 0:01:38]} gxh5 {[%emt 0:00:21]} 21. Rxh5 {[%emt 0:00:33]} Kg7 {[%emt 0:00:30]} 22. Rxh7+ {[%emt 0:02:56]} Kg6 {[%emt 0:05:10]} 23. Qh3 {[%emt 0:01:55]} Nxe4 {[%emt 0:00:53]} 24. Qh5# {[%emt 0:00:28]} 1-0

[Event "Croatian-ch Youth U13 2022"]
[Site "Trogir"]
[Date "2022.06.24"]
[Round "5.5"]
[White "Puljiz, Marin"]
[Black "Mandaric, Duje"]
[Result "0-1"]
[ECO "B18"]
[WhiteElo "1296"]
[BlackElo "1333"]
[Annotator "NA RC"]
[PlyCount "86"]
[EventDate "2022.06.22"]
[EventType "swiss"]
[EventCountry "CRO"]
[SourceTitle "playchess.com"]
[Source "ChessBase"]
[SourceQuality "1"]
[TimeControl "5400+30"]

1. e4 {[%emt 0:00:01]} c6 {[%emt 0:00:06]} 2. d4 {[%emt 0:00:05]} d5 {[%emt 0:00:07]} 3. Nc3 {[%emt 0:00:05]} dxe4 {[%emt 0:00:08]} 4. Nxe4 {[%emt 0:00:08]} Bf5 {[%emt 0:00:06]} 5. Ng3 {[%emt 0:00:23]} Bg6 {[%emt 0:00:08]} 6. Nf3 {[%emt 0:00:23]} Nd7 {[%emt 0:00:09]} 7. Bc4 {[%emt 0:00:14]} e6 {[%emt 0:00:48]} 8. O-O {[%emt 0:00:21]} Ngf6 {[%emt 0:00:30]} 9. Bf4 {[%emt 0:00:25]} Qb6 {[%emt 0:01:25]} 10. Bb3 {[%emt 0:00:47]} O-O-O {[%emt 0:00:46]} 11. Qd2 {[%emt 0:00:58]} h5 {[%emt 0:02:09]} 12. Nh4 {[%emt 0:03:35]} Bh7 {[%emt 0:01:08]} 13. Rfe1 {[%emt 0:03:02]} Be7 {[%emt 0:01:37]} 14. Ngf5 {[%emt 0:09:43]} Nd5 {[%emt 0:08:35]} 15. Bxd5 {[%emt 0:03:53]} Bxf5 {[%emt 0:03:48]} 16. Nxf5 {[%emt 0:00:39]} exf5 {[%emt 0:00:21]} 17. Bb3 {[%emt 0:02:15]} Bf6 {[%emt 0:01:57]} 18. Rad1 {[%emt 0:10:58]} Rhe8 {[%emt 0:03:14]} 19. c3 {[%emt 0:06:48]} Rxe1+ {[%emt 0:01:42]} 20. Rxe1 {[%emt 0:00:10]} Qa5 {[%emt 0:04:27]} 21. Bxf7 {[%emt 0:10:16]} Ne5 {[%emt 0:04:38]} 22. Bxe5 {[%emt 0:00:17]} Bxe5 {[%emt 0:00:19]} 23. Qe3 {[%emt 0:00:20]} Bd6 {[%emt 0:00:51]} 24. Qf3 {[%emt 0:03:18]} h4 {[%emt 0:01:43]} 25. Be6+ {[%emt 0:00:42]} Kb8 {[%emt 0:00:41]} 26. Qxf5 {[%emt 0:00:20]} Qb6 {[%emt 0:00:43]} 27. Bb3 {[%emt 0:00:35]} a6 {[%emt 0:00:35]} 28. Qf7 {[%emt 0:01:32]} h3 {[%emt 0:02:01]} 29. gxh3 {[%emt 0:03:17]} Ka7 {[%emt 0:01:26]} 30. Re8 {[%emt 0:01:22]} Rxe8 {[%emt 0:00:49]} 31. Qxe8 {[%emt 0:00:09]} Qa5 {[%emt 0:00:35]} 32. Qg6 {[%emt 0:00:29]} Qc7 {[%emt 0:00:25]} 33. Qg2 {[%emt 0:01:18]} Qe7 {[%emt 0:01:09]} 34. Kh1 {[%emt 0:01:29]} Qe1+ {[%emt 0:00:34]} 35. Qg1 {[%emt 0:00:07]} Qd2 {[%emt 0:01:16]} 36. f3 {[%emt 0:05:10]} Qxb2 {[%emt 0:00:17]} 37. d5+ {[%emt 0:00:09]} Ka8 {[%emt 0:00:33]} 38. dxc6 {[%emt 0:00:09]} bxc6 {[%emt 0:00:17]} 39. Bc4 {[%emt 0:07:44]} Qxc3 {[%emt 0:00:57]} 40. Qf1 {[%emt 0:00:03]} Qc2 {[%emt 0:00:51]} 41. Qe2 {[%emt 0:00:10]} Qc1+ {[%emt 0:00:29]} 42. Kg2 {[%emt 0:00:07]} Qg5+ {[%emt 0:00:13]} 43. Kf2 {[%emt 0:00:54]} Bc5+ {[%emt 0:00:25]} 0-1

[Event "Croatian-ch Youth U13 2022"]
[Site "Trogir"]
[Date "2022.06.24"]
[Round "5.6"]
[White "Sosic, Zvan"]
[Black "Lovrekovic, Leo"]
[Result "1-0"]
[ECO "C16"]
[WhiteElo "1331"]
[BlackElo "1188"]
[Annotator "NA RC"]
[PlyCount "41"]
[EventDate "2022.06.22"]
[EventType "swiss"]
[EventCountry "CRO"]
[SourceTitle "playchess.com"]
[Source "ChessBase"]
[SourceQuality "1"]
[TimeControl "5400+30"]

1. e4 {[%emt 0:00:02]} e6 {[%emt 0:00:09]} 2. d4 {[%emt 0:00:04]} d5 {[%emt 0:00:10]} 3. Nc3 {[%emt 0:00:03]} Bb4 {[%emt 0:04:35]} 4. e5 {[%emt 0:00:10]} Bxc3+ {[%emt 0:01:45]} 5. bxc3 {[%emt 0:00:12]} h6 {[%emt 0:01:59]} 6. Bd3 {[%emt 0:01:43]} Ne7 {[%emt 0:01:07]} 7. Qg4 {[%emt 0:02:22]} g6 {[%emt 0:04:41]} 8. Qh4 {[%emt 0:03:10]} h5 {[%emt 0:04:13]} 9. Nf3 {[%emt 0:02:02]} Nec6 {[%emt 0:03:10]} 10. Bg5 {[%emt 0:03:10]} Qd7 {[%emt 0:03:32]} 11. Bf6 {[%emt 0:01:44]} Rg8 {[%emt 0:01:30]} 12. g4 {[%emt 0:01:14]} hxg4 {[%emt 0:09:15]} 13. Qh7 {[%emt 0:01:28]} Kf8 {[%emt 0:04:48]} 14. Ng5 {[%emt 0:00:43]} Na6 {[%emt 0:16:19]} 15. Bg7+ {[%emt 0:01:14]} Rxg7 {[%emt 0:06:47]} 16. Qh8+ {[%emt 0:00:12]} Rg8 {[%emt 0:00:43]} 17. Nh7+ {[%emt 0:00:11]} Ke7 {[%emt 0:00:38]} 18. Qxg8 {[%emt 0:00:14]} Qe8 {[%emt 0:01:11]} 19. Qg7 {[%emt 0:00:16]} Nd8 {[%emt 0:03:18]} 20. Bxg6 {[%emt 0:07:26]} Kd7 {[%emt 0:01:56]} 21. Nf6+ {[%emt 0:00:17]} 1-0

[Event "Croatian-ch Youth U13 2022"]
[Site "Trogir"]
[Date "2022.06.24"]
[Round "5.7"]
[White "Rehak, Bozidar"]
[Black "Delibasic, Dominik"]
[Result "1/2-1/2"]
[ECO "D02"]
[WhiteElo "1186"]
[BlackElo "1523"]
[Annotator "NA RC"]
[PlyCount "94"]
[EventDate "2022.06.22"]
[EventType "swiss"]
[EventCountry "CRO"]
[SourceTitle "playchess.com"]
[Source "ChessBase"]
[SourceQuality "1"]
[TimeControl "5400+30"]

1. d4 {[%emt 0:00:07]} Nf6 {[%emt 0:00:03]} 2. Bf4 {[%emt 0:00:22]} e6 {[%emt 0:00:12]} 3. Nf3 {[%emt 0:00:19]} Be7 {[%emt 0:01:28]} 4. e3 {[%emt 0:00:44]} b6 {[%emt 0:00:17]} 5. Nbd2 {[%emt 0:00:27]} Bb7 {[%emt 0:00:42]} 6. Bd3 {[%emt 0:00:21]} O-O {[%emt 0:00:49]} 7. c4 {[%emt 0:00:24]} d5 {[%emt 0:00:35]} 8. O-O {[%emt 0:01:41]} Nbd7 {[%emt 0:01:39]} 9. Qc2 {[%emt 0:00:43]} c5 {[%emt 0:05:00]} 10. b3 {[%emt 0:07:52]} Rc8 {[%emt 0:02:29]} 11. Ne5 {[%emt 0:03:21]} h6 {[%emt 0:10:31]} 12. Ndf3 {[%emt 0:03:36]} Nh5 {[%emt 0:02:15]} 13. Bg3 {[%emt 0:01:45]} Nxg3 {[%emt 0:01:17]} 14. fxg3 {[%emt 0:00:42]} Bd6 {[%emt 0:03:07]} 15. Nxd7 {[%emt 0:03:00]} Qxd7 {[%emt 0:01:49]} 16. Rf2 {[%emt 0:02:27]} Qe7 {[%emt 0:13:26]} 17. Raf1 {[%emt 0:01:28]} f5 {[%emt 0:00:57]} 18. Nh4 {[%emt 0:09:16]} Qg5 {[%emt 0:06:42]} 19. Qe2 {[%emt 0:04:04]} g6 {[%emt 0:07:55]} 20. Nf3 {[%emt 0:13:06]} Qe7 {[%emt 0:02:45]} 21. Nd2 {[%emt 0:04:30]} Qg5 {[%emt 0:11:21]} 22. Nf3 {[%emt 0:00:31]} Qg4 {[%emt 0:06:35]} 23. Ne5 {[%emt 0:04:48]} Qxe2 {[%emt 0:00:39]} 24. Bxe2 {[%emt 0:00:35]} Bxe5 {[%emt 0:00:05]} 25. dxe5 {[%emt 0:00:07]} Rcd8 {[%emt 0:00:48]} 26. g4 {[%emt 0:00:39]} d4 {[%emt 0:03:55]} 27. exd4 {[%emt 0:00:56]} Rxd4 {[%emt 0:00:13]} 28. gxf5 {[%emt 0:00:10]} exf5 {[%emt 0:00:39]} 29. Bf3 {[%emt 0:00:56]} Be4 {[%emt 0:02:26]} 30. Re1 {[%emt 0:02:14]} Re8 {[%emt 0:01:30]} 31. Rfe2 {[%emt 0:00:48]} Rxe5 {[%emt 0:01:04]} 32. Bxe4 {[%emt 0:00:08]} Rdxe4 {[%emt 0:00:12]} 33. Rxe4 {[%emt 0:00:08]} fxe4 {[%emt 0:00:25]} 34. Kf2 {[%emt 0:00:20]} Kf7 {[%emt 0:00:10]} 35. Ke3 {[%emt 0:00:28]} Kf6 {[%emt 0:02:50]} 36. Rd1 {[%emt 0:02:45]} Re6 {[%emt 0:00:38]} 37. Rd7 {[%emt 0:01:00]} a5 {[%emt 0:01:14]} 38. a4 {[%emt 0:01:14]} Kf5 {[%emt 0:01:58]} 39. Rf7+ {[%emt 0:00:52]} Kg5 {[%emt 0:02:27]} 40. Rf4 {[%emt 0:00:45]} h5 {[%emt 0:01:16]} 41. Rxe4 {[%emt 0:00:17]} Rd6 {[%emt 0:00:38]} 42. Ke2 {[%emt 0:01:33]} Kf5 {[%emt 0:00:41]} 43. Re8 {[%emt 0:01:34]} Re6+ {[%emt 0:00:09]} 44. Rxe6 {[%emt 0:00:09]} Kxe6 {[%emt 0:00:06]} 45. g3 {[%emt 0:02:53]} g5 {[%emt 0:00:46]} 46. h3 {[%emt 0:00:08]} h4 {[%emt 0:01:22]} 47. g4 {[%emt 0:00:10]} Kf6 {[%emt 0:00:18]} 1/2-1/2

[Event "Croatian-ch Youth U13 2022"]
[Site "Trogir"]
[Date "2022.06.24"]
[Round "5.9"]
[White "Hajdinic, Ema"]
[Black "Zagorac, Lara"]
[Result "1/2-1/2"]
[ECO "B22"]
[WhiteElo "1535"]
[BlackElo "1482"]
[Annotator "NA RC"]
[PlyCount "45"]
[EventDate "2022.06.22"]
[EventType "swiss"]
[EventCountry "CRO"]
[SourceTitle "playchess.com"]
[Source "ChessBase"]
[SourceQuality "1"]
[TimeControl "5400+30"]

1. e4 {[%emt 0:00:05]} c5 {[%emt 0:00:08]} 2. c3 {[%emt 0:00:03]} d5 {[%emt 0:00:06]} 3. exd5 {[%emt 0:00:05]} Qxd5 {[%emt 0:00:07]} 4. d4 {[%emt 0:00:04]} Nc6 {[%emt 0:00:25]} 5. Nf3 {[%emt 0:00:05]} Bf5 {[%emt 0:00:18]} 6. Be2 {[%emt 0:01:30]} Bxb1 {[%emt 0:01:01]} 7. Rxb1 {[%emt 0:00:27]} cxd4 {[%emt 0:00:52]} 8. Nxd4 {[%emt 0:02:19]} Nxd4 {[%emt 0:01:17]} 9. Qxd4 {[%emt 0:00:17]} Qxd4 {[%emt 0:00:17]} 10. cxd4 {[%emt 0:00:05]} a6 {[%emt 0:00:46]} 11. Bf3 {[%emt 0:00:09]} O-O-O {[%emt 0:04:01]} 12. Bf4 {[%emt 0:06:10]} e5 {[%emt 0:26:20]} 13. Rc1+ {[%emt 0:03:13]} Kd7 {[%emt 0:13:44]} 14. Bxe5 {[%emt 0:02:23]} Bb4+ {[%emt 0:01:31]} 15. Kd1 {[%emt 0:00:27]} f6 {[%emt 0:04:21]} 16. Bc7 {[%emt 0:03:16]} Rf8 {[%emt 0:03:05]} 17. Bg4+ {[%emt 0:00:47]} f5 {[%emt 0:02:02]} 18. Bf3 {[%emt 0:00:45]} Bd6 {[%emt 0:02:33]} 19. Bxd6 {[%emt 0:02:08]} Kxd6 {[%emt 0:00:22]} 20. Bxb7 {[%emt 0:02:53]} Rb8 {[%emt 0:01:19]} 21. Bxa6 {[%emt 0:00:34]} Rxb2 {[%emt 0:01:02]} 22. a4 {[%emt 0:00:44]} Nf6 {[%emt 0:02:05]} 23. f3 {[%emt 0:05:43]} 1/2-1/2

[Event "Croatian-ch Youth U13 2022"]
[Site "Trogir"]
[Date "2022.06.24"]
[Round "5.10"]
[White "Vucenovic, Diara"]
[Black "Paulic, Franka"]
[Result "1-0"]
[ECO "B23"]
[WhiteElo "1352"]
[BlackElo "1067"]
[Annotator "NA RC"]
[PlyCount "101"]
[EventDate "2022.06.22"]
[EventType "swiss"]
[EventCountry "CRO"]
[SourceTitle "playchess.com"]
[Source "ChessBase"]
[SourceQuality "1"]
[TimeControl "5400+30"]

1. e4 {[%emt 0:00:02]} c5 {[%emt 0:00:01]} 2. Bc4 {[%emt 0:00:23]} Nc6 {[%emt 0:00:17]} 3. Nc3 {[%emt 0:00:41]} Nf6 {[%emt 0:00:14]} 4. d3 {[%emt 0:00:39]} d6 {[%emt 0:00:27]} 5. h3 {[%emt 0:01:18]} g6 {[%emt 0:00:59]} 6. Nf3 {[%emt 0:00:43]} Bg7 {[%emt 0:00:16]} 7. Be3 {[%emt 0:01:57]} O-O {[%emt 0:00:41]} 8. Qd2 {[%emt 0:01:41]} Bd7 {[%emt 0:00:50]} 9. Ne2 {[%emt 0:07:37]} Na5 {[%emt 0:00:48]} 10. Bb3 {[%emt 0:01:39]} Nxb3 {[%emt 0:02:41]} 11. axb3 {[%emt 0:00:28]} Ne8 {[%emt 0:02:39]} 12. Rb1 {[%emt 0:04:16]} Rc8 {[%emt 0:06:40]} 13. Ng3 {[%emt 0:01:04]} Be6 {[%emt 0:01:58]} 14. h4 {[%emt 0:04:35]} d5 {[%emt 0:00:57]} 15. h5 {[%emt 0:03:01]} Bg4 {[%emt 0:03:31]} 16. Rh4 {[%emt 0:08:21]} Bxf3 {[%emt 0:01:09]} 17. gxf3 {[%emt 0:00:14]} e5 {[%emt 0:01:02]} 18. Rh1 {[%emt 0:12:24]} b6 {[%emt 0:04:28]} 19. Bh6 {[%emt 0:01:55]} d4 {[%emt 0:01:41]} 20. Bxg7 {[%emt 0:01:51]} Nxg7 {[%emt 0:06:37]} 21. Qh6 {[%emt 0:01:14]} Qf6 {[%emt 0:01:07]} 22. hxg6 {[%emt 0:05:31]} Qxg6 {[%emt 0:00:15]} 23. Qh2 {[%emt 0:03:18]} f5 {[%emt 0:05:27]} 24. Nxf5 {[%emt 0:02:24]} Nxf5 {[%emt 0:00:25]} 25. Rg1 {[%emt 0:00:19]} Ne7 {[%emt 0:01:04]} 26. Rxg6+ {[%emt 0:00:38]} Nxg6 {[%emt 0:00:04]} 27. Qg3 {[%emt 0:01:27]} Kf7 {[%emt 0:02:26]} 28. Kd2 {[%emt 0:01:08]} Rg8 {[%emt 0:00:18]} 29. Qh3 {[%emt 0:00:42]} Nf4 {[%emt 0:01:28]} 30. Qxh7+ {[%emt 0:00:14]} Rg7 {[%emt 0:00:04]} 31. Qf5+ {[%emt 0:00:09]} Ke7 {[%emt 0:00:16]} 32. Qxc8 {[%emt 0:00:23]} Rg2 {[%emt 0:00:10]} 33. Rf1 {[%emt 0:00:26]} Kd6 {[%emt 0:00:24]} 34. Qb8+ {[%emt 0:00:24]} Ke6 {[%emt 0:00:13]} 35. Qxa7 {[%emt 0:00:13]} Kf6 {[%emt 0:00:36]} 36. Qxb6+ {[%emt 0:00:13]} Kg5 {[%emt 0:00:09]} 37. Qxc5 {[%emt 0:00:16]} Ng6 {[%emt 0:00:12]} 38. b4 {[%emt 0:00:50]} Kf6 {[%emt 0:00:44]} 39. Qd6+ {[%emt 0:00:26]} Kf7 {[%emt 0:00:09]} 40. b5 {[%emt 0:00:14]} Nh4 {[%emt 0:00:06]} 41. Qd7+ {[%emt 0:00:29]} Kg6 {[%emt 0:00:20]} 42. Qh3 {[%emt 0:00:33]} Kh5 {[%emt 0:00:39]} 43. Ke2 {[%emt 0:00:23]} Kg6 {[%emt 0:00:58]} 44. Qxh4 {[%emt 0:00:22]} Rg5 {[%emt 0:00:05]} 45. Qxg5+ {[%emt 0:00:33]} Kxg5 {[%emt 0:02:48]} 46. b6 {[%emt 0:00:41]} Kf4 {[%emt 0:00:09]} 47. b7 {[%emt 0:00:20]} Kg5 {[%emt 0:00:02]} 48. b8=Q {[%emt 0:00:12]} Kf4 {[%emt 0:00:07]} 49. Qf8+ {[%emt 0:00:09]} Kg5 {[%emt 0:00:05]} 50. Rg1+ {[%emt 0:00:11]} Kh5 {[%emt 0:00:04]} 51. Qh8# {[%emt 0:00:09]} 1-0

[Event "Croatian-ch Youth U13 2022"]
[Site "Trogir"]
[Date "2022.06.25"]
[Round "6.1"]
[White "Petrus, Adrian"]
[Black "Pehar, Borna"]
[Result "1-0"]
[ECO "B31"]
[WhiteElo "1526"]
[BlackElo "1756"]
[Annotator "NA RC"]
[PlyCount "77"]
[EventDate "2022.06.22"]
[EventType "swiss"]
[EventCountry "CRO"]
[SourceTitle "playchess.com"]
[Source "ChessBase"]
[SourceQuality "1"]
[TimeControl "5400+30"]

1. e4 {[%emt 0:00:11]} c5 {[%emt 0:00:09]} 2. Nf3 {[%emt 0:00:06]} Nc6 {[%emt 0:00:31]} 3. Bb5 {[%emt 0:00:05]} g6 {[%emt 0:00:21]} 4. Bxc6 {[%emt 0:00:18]} bxc6 {[%emt 0:01:30]} 5. O-O {[%emt 0:01:44]} Bg7 {[%emt 0:00:39]} 6. Re1 {[%emt 0:02:16]} e5 {[%emt 0:00:52]} 7. c3 {[%emt 0:01:08]} Ne7 {[%emt 0:05:21]} 8. d4 {[%emt 0:05:01]} exd4 {[%emt 0:03:40]} 9. cxd4 {[%emt 0:00:22]} cxd4 {[%emt 0:01:22]} 10. Nxd4 {[%emt 0:00:07]} O-O {[%emt 0:00:20]} 11. Nc3 {[%emt 0:08:48]} Qb6 {[%emt 0:11:26]} 12. Nb3 {[%emt 0:03:30]} Qc7 {[%emt 0:10:16]} 13. Bg5 {[%emt 0:06:50]} d6 {[%emt 0:03:58]} 14. Rc1 {[%emt 0:06:04]} Rb8 {[%emt 0:04:56]} 15. Qd2 {[%emt 0:05:14]} Be6 {[%emt 0:02:00]} 16. Nd5 {[%emt 0:12:41]} Bxd5 {[%emt 0:02:53]} 17. Bxe7 {[%emt 0:02:35]} Rfe8 {[%emt 0:01:52]} 18. exd5 {[%emt 0:02:41]} Rxe7 {[%emt 0:00:21]} 19. Rxe7 {[%emt 0:06:43]} Qxe7 {[%emt 0:00:52]} 20. dxc6 {[%emt 0:00:48]} Re8 {[%emt 0:01:25]} 21. g3 {[%emt 0:05:11]} Rc8 {[%emt 0:04:34]} 22. Rc2 {[%emt 0:01:23]} Bh6 {[%emt 0:03:45]} 23. Qd3 {[%emt 0:03:30]} Qe5 {[%emt 0:07:59]} 24. Kg2 {[%emt 0:04:38]} Bf8 {[%emt 0:04:14]} 25. Nd2 {[%emt 0:04:58]} Qe6 {[%emt 0:07:42]} 26. Qa6 {[%emt 0:02:23]} Bh6 {[%emt 0:05:06]} 27. Nf3 {[%emt 0:00:09]} g5 {[%emt 0:01:47]} 28. h3 {[%emt 0:02:04]} Kg7 {[%emt 0:01:08]} 29. Qxa7 {[%emt 0:02:02]} Qe4 {[%emt 0:01:31]} 30. Qd4+ {[%emt 0:00:17]} Qxd4 {[%emt 0:00:30]} 31. Nxd4 {[%emt 0:00:01]} Kf6 {[%emt 0:00:25]} 32. Nb5 {[%emt 0:00:24]} Ke6 {[%emt 0:00:26]} 33. c7 {[%emt 0:00:04]} Kd7 {[%emt 0:00:09]} 34. a4 {[%emt 0:00:16]} Bf8 {[%emt 0:00:17]} 35. a5 {[%emt 0:01:48]} Ra8 {[%emt 0:00:22]} 36. a6 {[%emt 0:00:22]} Kc8 {[%emt 0:00:12]} 37. Rc6 {[%emt 0:00:53]} Kd7 {[%emt 0:00:32]} 38. Rb6 {[%emt 0:00:38]} Kc8 {[%emt 0:00:20]} 39. a7 {[%emt 0:00:45]} 1-0